bitfinex/quotes_SOLUSD_20250617
["timestamp","ask_amount","ask_price","bid_price","bid_amount"]
[1750154647225,17.49913264,151.46,151.44,11.99091582]
[1750154647416,17.49913264,151.46,151.44,6.60325298]
[1750154648204,17.49913264,151.46,151.44,11.99091582]
[1750154648825,17.49913264,151.46,151.44,6.60325298]
[1750154649211,17.49913264,151.46,151.44,11.99091582]
[1750154651511,17.49913264,151.46,151.44,6.60325298]
[1750154654502,17.49913264,151.46,151.43,12.27569726]
[1750154656929,17.49913264,151.46,151.43,6.88803442]
[1750154657114,5.38766284,151.45,151.42,12.30395715]
[1750154659033,22.88679548,151.46,151.42,12.30395715]
[1750154660035,5.38766284,151.45,151.42,5.7]
[1750154660830,5.38766284,151.44,151.42,5.7]
[1750154661037,5.38766284,151.43,151.42,5.7]
[1750154661535,5.38766284,151.44,151.42,5.7]
[1750154662534,24.10170893,151.46,151.42,5.7]
[1750154662733,22.88679548,151.46,151.42,12.30409209]
[1750154663036,29.48924735,151.46,151.42,12.30409209]
[1750154663225,22.88679548,151.46,151.42,12.30409209]
[1750154663834,22.88679548,151.46,151.42,17.69175493]
[1750154665335,29.48943656,151.46,151.42,12.30414492]
[1750154665541,29.48943656,151.46,151.42,17.69180776]
[1750154665744,11.99030392,151.46,151.42,17.69180776]
[1750154666217,14.44136168,151.46,151.42,17.69180776]
[1750154666418,11.99030392,151.46,151.42,17.69180776]
[1750154666833,14.44136168,151.46,151.42,17.69180776]
[1750154667035,5.38766284,151.46,151.42,17.69180776]
[1750154667223,5.38766284,151.46,151.42,11.08766284]
[1750154667547,7.83856842,151.45,151.42,5.7]
[1750154668238,2.45090558,151.45,151.42,5.7]
[1750154668548,7.83856842,151.45,151.42,5.7]
[1750154668846,5.38766284,151.45,151.42,5.7]
[1750154669022,6.60243103,151.46,151.42,5.7]
[1750154669224,7.8381022,151.45,151.42,5.7]
[1750154669438,5.38766284,151.44,151.42,5.7]
[1750154669732,6.60243103,151.46,151.41,0.1204172]
[1750154669917,5.38766284,151.44,151.41,0.1204172]
[1750154671123,7.83911666,151.45,151.41,6.72499888]
[1750154671351,5.38766284,151.45,151.41,12.11266172]
[1750154672019,11.9905268,151.45,151.41,12.11266172]
[1750154672220,11.9905268,151.45,151.41,5.50808004]
[1750154672445,5.38766284,151.44,151.41,0.1204172]
[1750154673147,5.38766284,151.43,151.41,0.1204172]
[1750154673331,5.38766284,151.42,151.41,0.1204172]
[1750154674932,7.83701216,151.42,151.41,0.1204172]
[1750154675151,19.33752269,151.42,151.41,0.1204172]
[1750154675339,14.44115956,151.42,151.41,0.1204172]
[1750154675540,45.33752269,151.42,151.41,0.1204172]
[1750154675934,63.98717155,151.42,151.41,0.1204172]
[1750154676632,37.98717155,151.42,151.41,0.1204172]
[1750154677353,26.0,151.39,151.33,5.72]
[1750154677537,5.38766284,151.35,151.33,5.72]
[1750154677734,5.38766284,151.34,151.33,5.72]
[1750154679135,32.21849186,151.39,151.33,5.72]
[1750154679136,6.60632886,151.37,151.33,5.72]
[1750154679328,5.38766284,151.34,151.33,5.72]
[1750154680833,5.38766284,151.34,151.28,1.6322]
[1750154681038,26.0,151.36,151.28,7.4122]
[1750154681039,5.38766284,151.3,151.28,7.4122]
[1750154681253,5.38766284,151.3,151.28,5.78]
[1750154681832,5.38766284,151.29,151.24,18.9920729]
[1750154682067,6.60895341,151.31,151.24,25.60398488]
[1750154682068,5.38766284,151.28,151.24,25.60398488]
[1750154682231,6.60895341,151.31,151.24,8.17541198]
[1750154682232,5.38766284,151.29,151.24,8.17541198]
[1750154682556,5.38766284,151.29,151.24,13.56307482]
[1750154682757,5.38766284,151.27,151.24,1.5635]
[1750154682931,6.60895341,151.31,151.23,5.78]
[1750154682932,5.38766284,151.26,151.23,5.78]
[1750154683349,5.38766284,151.25,151.23,5.78]
[1750154685435,6.6106781,151.28,151.23,5.78]
[1750154685631,5.38766284,151.25,151.23,5.78]
[1750154685970,5.38766284,151.26,151.23,5.78]
[1750154686132,5.38766284,151.25,151.23,5.78]
[1750154686860,5.38766284,151.26,151.23,5.78]
[1750154687269,5.38766284,151.25,151.23,5.78]
[1750154687432,5.38766284,151.26,151.23,5.78]
[1750154687839,6.60982219,151.29,151.23,5.78]
[1750154688029,5.38766284,151.27,151.23,17.779972]
[1750154688386,5.38766284,151.28,151.23,12.39230916]
[1750154688533,5.38766284,151.28,151.24,5.38766284]
[1750154689141,5.38766284,151.27,151.23,12.39230916]
[1750154689358,5.38766284,151.26,151.23,5.78]
[1750154689572,6.61020667,151.29,151.18,12.3726]
[1750154689573,5.38766284,151.24,151.18,12.3726]
[1750154689728,26.0,151.18,151.12,4.73350698]
[1750154689939,27.1,151.19,151.12,4.73350698]
[1750154690242,5.38766284,151.17,151.13,5.38766284]
[1750154690629,5.38766284,151.16,151.12,16.73821705]
[1750154691058,26.0,151.19,151.15,6.61594442]
[1750154691353,17.36029072,151.23,151.15,6.61594442]
[1750154691354,5.38766284,151.17,151.15,5.78]
[1750154691530,5.38766284,151.16,151.15,5.78]
[1750154691853,5.38766284,151.16,151.12,17.13069043]
[1750154692238,5.38766284,151.16,151.12,22.51835327]
[1750154692454,5.38766284,151.16,151.12,17.13069043]
[1750154694160,5.38766284,151.16,151.12,22.51835327]
[1750154694543,26.0,151.2,151.13,5.38766284]
[1750154694747,26.0,151.2,151.15,6.61594442]
[1750154694948,5.38766284,151.18,151.15,6.61594442]
[1750154695163,5.38766284,151.17,151.15,6.61594442]
[1750154695766,5.38766284,151.18,151.15,6.61594442]
[1750154696466,5.38766284,151.17,151.13,6.61681995]
[1750154696636,5.38766284,151.17,151.13,12.00448279]
[1750154697653,5.38766284,151.17,151.13,5.38766284]
[1750154698149,6.61424654,151.19,151.13,5.38766284]
[1750154698349,5.38766284,151.17,151.13,5.38766284]
[1750154699375,5.38766284,151.16,151.12,22.51827311]
[1750154699678,5.38766284,151.17,151.13,5.38766284]
[1750154700648,5.38766284,151.17,151.12,17.13061027]
[1750154700649,5.38766284,151.16,151.12,22.51827311]
[1750154700848,5.38766284,151.14,151.12,10.51350698]
[1750154701754,5.38766284,151.15,151.12,17.13070076]
[1750154701964,6.61523023,151.17,151.12,17.13070076]
[1750154702266,6.61425104,151.19,151.13,5.38766284]
[1750154702473,5.38766284,151.18,151.14,5.38766284]
[1750154702643,5.38766284,151.19,151.14,5.38766284]
[1750154702975,5.38766284,151.18,151.14,5.38766284]
[1750154703565,5.38766284,151.18,151.14,12.00404243]
[1750154703772,10.7475143,151.23,151.16,5.38766284]
[1750154704066,5.38766284,151.2,151.16,5.38766284]
[1750154704943,5.38766284,151.18,151.14,12.00389565]
[1750154705153,5.38766284,151.18,151.14,5.38766284]
[1750154705468,6.61379086,151.2,151.12,10.51350698]
[1750154705469,5.38766284,151.16,151.12,10.51350698]
[1750154705763,5.38766284,151.16,151.12,15.90116982]
[1750154706562,5.38766284,151.16,151.12,22.5184185]
[1750154706764,6.61507471,151.17,151.12,22.5184185]
[1750154706959,5.38766284,151.16,151.12,22.5184185]
[1750154707858,26.0,151.19,151.13,5.38766284]
[1750154708183,5.38766284,151.18,151.12,17.13075566]
[1750154708367,26.0,151.19,151.13,5.38766284]
[1750154708677,5.38766284,151.17,151.13,5.38766284]
[1750154709364,32.61426257,151.19,151.14,6.61638216]
[1750154709583,5.38766284,151.17,151.13,5.38766284]
[1750154709752,32.61426257,151.19,151.13,5.38766284]
[1750154709946,5.38766284,151.17,151.13,5.38766284]
[1750154710166,5.38766284,151.17,151.12,10.51350698]
[1750154710465,5.38766284,151.17,151.13,5.38766284]
[1750154710649,5.38766284,151.17,151.13,12.00431428]
[1750154711247,5.38766284,151.18,151.13,12.00431428]
[1750154712454,32.61426257,151.19,151.13,12.00431428]
[1750154712658,5.38766284,151.18,151.14,5.38766284]
[1750154712964,5.38766284,151.18,151.13,12.00431428]
[1750154713167,5.38766284,151.17,151.13,6.61665144]
[1750154713352,5.38766284,151.17,151.13,12.00431428]
[1750154714070,5.38766284,151.18,151.14,5.38766284]
[1750154714769,5.38766284,151.18,151.13,6.61665144]
[1750154714960,5.38766284,151.18,151.12,10.51350698]
[1750154714961,5.38766284,151.17,151.12,17.13059835]
[1750154715274,5.38766284,151.16,151.12,17.13059835]
[1750154715585,5.38766284,151.16,151.12,15.90116982]
[1750154716550,5.38766284,151.16,151.12,22.51831608]
[1750154717045,5.38766284,151.16,151.12,10.51350698]
[1750154717246,5.38766284,151.16,151.12,15.90116982]
[1750154717247,12.00319201,151.16,151.12,15.90116982]
[1750154718409,12.00319201,151.16,151.12,10.51350698]
[1750154720759,12.00319201,151.16,151.12,15.90116982]
[1750154720760,32.61552917,151.16,151.12,15.90116982]
[1750154720963,12.00282845,151.17,151.13,5.38766284]
[1750154721359,12.00282845,151.17,151.12,22.51832424]
[1750154721977,12.00282845,151.17,151.12,15.90116982]
[1750154722379,12.00282845,151.17,151.12,22.51837614]
[1750154723760,5.38766284,151.16,151.12,15.90116982]
[1750154724167,6.61516561,151.17,151.12,15.90116982]
[1750154724168,5.38766284,151.14,151.12,10.51350698]
[1750154724361,6.61516561,151.17,151.12,10.51350698]
[1750154724572,5.38766284,151.15,151.12,10.51350698]
[1750154725271,26.0,151.16,151.12,15.90116982]
[1750154725663,31.38766284,151.16,151.12,15.90116982]
[1750154725982,5.38766284,151.15,151.12,10.51350698]
[1750154726767,26.0,151.16,151.12,15.90116982]
[1750154726958,26.0,151.16,151.13,5.38766284]
[1750154727157,32.61520346,151.17,151.12,10.51350698]
[1750154727491,38.0028663,151.17,151.13,5.38766284]
[1750154727697,38.0028663,151.17,151.12,15.90116982]
[1750154727995,5.38766284,151.15,151.12,10.51350698]
[1750154729101,32.61520346,151.17,151.12,10.51350698]
[1750154729300,5.38766284,151.13,151.12,4.73350698]
[1750154731102,27.08,151.15,151.12,4.73350698]
[1750154731103,33.31763567,151.14,151.12,4.73350698]
[1750154731272,9.05521796,151.13,151.12,4.73350698]
[1750154731482,14.4428808,151.13,151.12,4.73350698]
[1750154731785,19.32585438,151.13,151.12,4.73350698]
[1750154732101,30.38585438,151.13,151.12,4.73350698]
[1750154733170,30.3841477,151.13,151.12,4.73350698]
[1750154733702,24.99648486,151.13,151.12,4.73350698]
[1750154733992,23.06448279,151.13,151.12,4.73350698]
[1750154734194,27.96175129,151.13,151.12,4.73350698]
[1750154734365,30.41066431,151.13,151.12,4.73350698]
[1750154734696,13.96300147,151.13,151.12,4.73350698]
[1750154734902,9.06585584,151.13,151.12,4.73350698]
[1750154735107,13.9625993,151.13,151.12,4.73350698]
[1750154735268,9.06585584,151.13,151.12,4.73350698]
[1750154736087,9.06543194,151.13,151.12,4.73350698]
[1750154736286,14.45309478,151.13,151.12,4.73350698]
[1750154736494,2.44861199,151.13,151.12,4.73350698]
[1750154736897,2.44861199,151.14,151.12,4.73350698]
[1750154737186,7.83627483,151.13,151.12,4.73350698]
[1750154737687,14.45309478,151.13,151.12,4.73350698]
[1750154738205,2.44861199,151.13,151.12,4.73350698]
[1750154738675,9.06543194,151.13,151.12,4.73350698]
[1750154738872,2.44861199,151.13,151.12,4.73350698]
[1750154739075,14.45309478,151.13,151.12,4.73350698]
[1750154739287,12.00448279,151.13,151.12,4.73350698]
[1750154739493,14.45309478,151.13,151.12,4.73350698]
[1750154740171,12.00448279,151.13,151.12,4.73350698]
[1750154740788,6.61681995,151.13,151.12,4.73350698]
[1750154741090,12.00448279,151.13,151.12,4.73350698]
[1750154743384,22.86448279,151.13,151.12,4.73350698]
[1750154743870,17.47681995,151.13,151.12,4.73350698]
[1750154744068,22.86448279,151.13,151.12,4.73350698]
[1750154744792,12.00448279,151.13,151.12,4.73350698]
[1750154745876,6.61681995,151.13,151.12,4.73350698]
[1750154746078,12.00448279,151.13,151.12,4.73350698]
[1750154750197,6.61681995,151.13,151.12,4.73350698]
[1750154750405,6.61648936,151.14,151.12,4.73350698]
[1750154750568,12.0041522,151.14,151.12,4.73350698]
[1750154751098,5.38766284,151.13,151.12,4.73350698]
[1750154751678,12.00448279,151.13,151.12,4.73350698]
[1750154754879,22.86448279,151.13,151.12,4.73350698]
[1750154755989,17.47681995,151.13,151.12,4.73350698]
[1750154756291,22.86448279,151.13,151.12,4.73350698]
[1750154757694,72.69305739,151.13,151.12,4.73350698]
[1750154757898,99.46873425,151.13,151.12,4.73350698]
[1750154758115,48.37142255,151.13,151.12,4.73350698]
[1750154758279,70.55681995,151.13,151.12,4.73350698]
[1750154758473,75.94448279,151.13,151.12,4.73350698]
[1750154759507,17.47681995,151.13,151.12,4.73350698]
[1750154759702,10.86,151.13,151.12,4.73350698]
[1750154759911,6.61640782,151.14,151.12,4.73350698]
[1750154760910,12.00407066,151.14,151.12,4.73350698]
[1750154762407,6.61640782,151.14,151.12,4.73350698]
[1750154762611,37.52001011,151.15,151.12,4.73350698]
[1750154762787,32.61612866,151.15,151.12,4.73350698]
[1750154763319,38.0037915,151.15,151.12,4.73350698]
[1750154763610,6.61521823,151.17,151.13,5.38766284]
[1750154763780,4.9060475,151.19,151.16,5.38766284]
[1750154764100,4.9060475,151.19,151.12,18.26248858]
[1750154764101,12.0020051,151.19,151.15,5.38766284]
[1750154764306,16.9080526,151.19,151.15,5.38766284]
[1750154764680,4.9060475,151.19,151.15,5.38766284]
[1750154764907,8.80440207,151.2,151.18,5.38766284]
[1750154765206,11.25645535,151.2,151.19,6.96446284]
[1750154765505,8.80440207,151.2,151.19,6.96446284]
[1750154765704,2.45205328,151.23,151.19,7.24878598]
[1750154765906,2.45205328,151.24,151.19,1.86112314]
[1750154766085,2.45205328,151.23,151.22,5.38766284]
[1750154766289,2.45205328,151.25,151.22,5.38766284]
[1750154766485,2.45205328,151.24,151.22,5.38766284]
[1750154766805,19.35700288,151.26,151.22,5.38766284]
[1750154767305,13.96934004,151.26,151.23,5.38766284]
[1750154767610,6.61080878,151.27,151.23,5.38766284]
[1750154767836,9.05518966,151.28,151.24,5.38766284]
[1750154768113,2.4448489,151.28,151.25,5.38766284]
[1750154768325,19.34846005,151.29,151.25,5.38766284]
[1750154768490,13.96079721,151.29,151.25,5.38766284]
[1750154768689,2.4448489,151.29,151.27,5.38766284]
[1750154768905,11.99710492,151.3,151.26,1.5735]
[1750154769103,5.38766284,151.29,151.26,1.5735]
[1750154769487,6.60944208,151.3,151.26,6.96116284]
[1750154769883,14.44439658,151.31,151.27,5.38766284]
[1750154770091,11.99662201,151.31,151.27,5.38766284]
[1750154770390,11.99630082,151.32,151.27,5.38766284]
[1750154770590,5.38766284,151.31,151.27,5.38766284]
[1750154770780,5.38766284,151.3,151.26,7.3935]
[1750154770992,11.99630082,151.32,151.27,5.38766284]
[1750154771299,5.38766284,151.31,151.27,5.38766284]
[1750154771707,5.38766284,151.31,151.26,12.78116284]
[1750154771915,5.38766284,151.31,151.26,7.3935]
[1750154772122,6.60863798,151.32,151.26,7.3935]
[1750154772123,5.38766284,151.28,151.26,7.3935]
[1750154772321,6.60894851,151.31,151.26,12.78116284]
[1750154772625,5.38766284,151.3,151.26,12.78116284]
[1750154772813,5.38766284,151.3,151.26,7.3935]
[1750154773011,5.38766284,151.29,151.26,7.3935]
[1750154773688,6.60894851,151.31,151.26,7.3935]
[1750154773689,5.38766284,151.3,151.26,7.3935]
[1750154773884,6.60894851,151.31,151.26,7.3935]
[1750154774087,11.99661135,151.31,151.26,12.78116284]
[1750154775025,5.38766284,151.3,151.26,12.78116284]
[1750154775389,11.99709342,151.3,151.26,12.78116284]
[1750154776020,5.38766284,151.29,151.26,7.3935]
[1750154776210,6.60943058,151.3,151.26,7.3935]
[1750154776412,5.38766284,151.29,151.26,7.3935]
[1750154776609,5.38766284,151.28,151.26,7.3935]
[1750154776812,5.38766284,151.28,151.26,5.82]
[1750154777716,11.9980179,151.28,151.26,5.82]
[1750154778025,5.38766284,151.29,151.26,5.82]
[1750154778195,5.38766284,151.27,151.26,5.82]
[1750154778500,5.38766284,151.27,151.22,1.6205]
[1750154778703,26.0,151.28,151.22,1.6205]
[1750154778704,5.38766284,151.25,151.22,1.6205]
[1750154779102,5.38766284,151.26,151.22,1.6205]
[1750154779698,5.38766284,151.26,151.22,7.00816284]
[1750154780919,5.38766284,151.26,151.22,13.62090271]
[1750154781127,11.99872588,151.27,151.23,5.38766284]
[1750154781305,6.61041278,151.28,151.23,5.38766284]
[1750154781504,5.38766284,151.28,151.24,5.38766284]
[1750154781814,11.99794275,151.28,151.24,5.38766284]
[1750154782009,11.99794275,151.28,151.23,6.61235973]
[1750154782191,11.99794275,151.28,151.24,5.38766284]
[1750154783432,5.38766284,151.27,151.23,12.00002257]
[1750154783799,5.38766284,151.28,151.23,12.00002257]
[1750154785322,5.38766284,151.28,151.24,5.38766284]
[1750154786138,11.99798097,151.28,151.24,5.38766284]
[1750154786806,5.38766284,151.29,151.25,5.38766284]
[1750154788621,5.38766284,151.29,151.25,11.99922171]
[1750154789008,5.38766284,151.29,151.25,5.38766284]
[1750154791530,11.99789349,151.29,151.23,6.89666618]
[1750154791727,5.38766284,151.28,151.24,5.38766284]
[1750154792304,5.38766284,151.27,151.23,6.61234304]
[1750154792535,5.38766284,151.27,151.23,12.00000588]
[1750154792929,5.38766284,151.27,151.22,1.6205]
[1750154792930,5.38766284,151.27,151.22,8.23320801]
[1750154793109,5.38766284,151.27,151.23,5.38766284]
[1750154794226,5.38766284,151.27,151.23,11.9999868]
[1750154794557,5.38766284,151.29,151.25,5.38766284]
[1750154794904,5.38766284,151.28,151.24,5.38766284]
[1750154795207,5.38766284,151.29,151.24,11.18766284]
[1750154796333,5.38766284,151.25,151.18,1.6535]
[1750154796628,5.38766284,151.25,151.2,5.38766284]
[1750154796931,5.38766284,151.24,151.19,5.67198598]
[1750154797130,5.38766284,151.22,151.18,7.4535]
[1750154797332,5.38766284,151.21,151.18,7.4535]
[1750154797532,4.85582072,151.25,151.18,7.4535]
[1750154797833,5.38766284,151.21,151.18,7.4535]
[1750154798014,5.38766284,151.2,151.18,7.4535]
[1750154798327,5.38766284,151.25,151.19,12.00155532]
[1750154798535,5.38766284,151.24,151.2,5.38766284]
[1750154798727,5.38766284,151.24,151.19,12.00155532]
[1750154798909,5.38766284,151.24,151.19,0.28432314]
[1750154799107,5.38766284,151.24,151.19,5.67198598]
[1750154799333,5.38766284,151.23,151.18,45.45551162]
[1750154799913,5.38766284,151.23,151.19,5.38766284]
[1750154800119,11.47890491,151.26,151.19,12.00165903]
[1750154800321,5.38766284,151.23,151.19,12.00165903]
[1750154800536,5.38766284,151.24,151.19,12.00165903]
[1750154800714,5.38766284,151.23,151.19,12.00165903]
[1750154801439,12.00015612,151.23,151.19,6.61399619]
[1750154801635,5.38766284,151.22,151.18,40.067956]
[1750154801840,5.38766284,151.22,151.18,14.067956]
[1750154803239,5.38766284,151.22,151.18,7.4535]
[1750154803240,12.00072156,151.22,151.18,7.4535]
[1750154803539,5.38766284,151.21,151.18,7.4535]
[1750154803745,5.38766284,151.2,151.18,7.4535]
[1750154804732,5.38766284,151.21,151.18,7.4535]
[1750154805439,5.38766284,151.21,151.18,5.8]
[1750154806325,10.26932113,151.22,151.18,5.8]
[1750154806540,5.38766284,151.22,151.18,5.8]
[1750154806722,12.00087341,151.22,151.18,5.8]
[1750154807047,4.89904265,151.21,151.18,5.8]
[1750154807244,4.89904265,151.2,151.18,5.8]
[1750154807441,12.00087341,151.22,151.18,5.8]
[1750154807622,4.89900275,151.21,151.18,5.8]
[1750154807822,4.89900275,151.2,151.18,5.8]
[1750154808024,4.89900275,151.19,151.18,5.8]
[1750154808234,4.89874636,151.19,151.18,5.8]
[1750154809344,4.89874636,151.19,151.18,17.8022944]
[1750154809547,12.0002712,151.23,151.18,17.8022944]
[1750154809721,4.89924324,151.22,151.19,5.38766284]
[1750154809921,4.89924324,151.21,151.18,17.8022944]
[1750154810131,4.89838965,151.2,151.18,17.8022944]
[1750154810352,12.0002712,151.23,151.18,17.8022944]
[1750154810535,4.89841503,151.22,151.18,17.8022944]
[1750154810735,4.89841503,151.21,151.18,17.8022944]
[1750154810934,12.0002712,151.23,151.18,17.8022944]
[1750154810935,4.89841503,151.2,151.18,17.8022944]
[1750154811146,12.0002712,151.23,151.18,17.8022944]
[1750154811455,4.89841503,151.22,151.18,17.8022944]
[1750154811626,4.89841503,151.21,151.18,17.8022944]
[1750154811947,4.89894403,151.2,151.18,11.18766284]
[1750154812130,5.38766284,151.22,151.18,11.18766284]
[1750154812332,10.28641799,151.21,151.18,5.8]
[1750154812534,4.89875515,151.2,151.18,5.8]
[1750154812734,5.38766284,151.21,151.18,5.8]
[1750154812933,4.89656863,151.2,151.18,5.8]
[1750154813133,5.38766284,151.21,151.18,5.8]
[1750154813357,4.89643647,151.2,151.18,5.8]
[1750154813567,5.38766284,151.21,151.18,5.8]
[1750154813767,4.89645174,151.2,151.18,5.8]
[1750154813961,5.38766284,151.21,151.18,5.8]
[1750154814266,4.89645259,151.2,151.18,5.8]
[1750154814433,2.45050498,151.24,151.19,5.38766284]
[1750154814632,4.89698145,151.23,151.2,5.38766284]
[1750154814946,11.99941316,151.25,151.2,12.00129388]
[1750154815259,4.89749759,151.24,151.21,5.38766284]
[1750154815426,11.99889732,151.26,151.21,5.38766284]
[1750154815632,4.89836007,151.25,151.21,5.38766284]
[1750154815855,4.89836007,151.24,151.21,5.38766284]
[1750154816161,11.99889732,151.26,151.2,8.11983104]
[1750154816162,6.61123448,151.26,151.2,8.11983104]
[1750154816456,10.28609475,151.25,151.2,13.50749388]
[1750154816757,4.89841005,151.24,151.2,13.50749388]
[1750154817064,4.89829404,151.23,151.2,13.50749388]
[1750154817358,11.99939482,151.25,151.2,13.50749388]
[1750154817527,4.89823429,151.24,151.2,13.50749388]
[1750154817726,11.99939482,151.25,151.2,13.50749388]
[1750154817949,4.89832277,151.24,151.2,13.50749388]
[1750154818138,4.89905939,151.23,151.2,13.50749388]
[1750154818451,5.38766284,151.24,151.2,6.89386284]
[1750154818657,4.89913436,151.23,151.2,1.5062]
[1750154818859,6.61173198,151.25,151.2,1.5062]
[1750154819036,10.28734105,151.24,151.2,6.89386284]
[1750154819237,4.89967821,151.23,151.2,6.89386284]
[1750154819436,5.38766284,151.24,151.2,6.89386284]
[1750154819637,4.89971626,151.23,151.2,6.89386284]
[1750154819943,5.38766284,151.24,151.2,6.89386284]
[1750154820145,4.89975468,151.23,151.2,8.11988462]
[1750154820328,5.38766284,151.24,151.2,13.50754746]
[1750154820535,4.89975468,151.23,151.2,13.50754746]
[1750154820733,5.38766284,151.24,151.2,13.50754746]
[1750154820951,4.89975096,151.23,151.2,13.50754746]
[1750154821149,5.38766284,151.24,151.2,13.50754746]
[1750154821431,5.38766284,151.24,151.2,8.11988462]
[1750154821639,5.38766284,151.24,151.2,13.50754746]
[1750154822145,11.99939482,151.25,151.21,5.38766284]
[1750154822457,6.61128756,151.26,151.21,5.38766284]
[1750154822754,5.38766284,151.25,151.21,5.38766284]
[1750154823145,5.38766284,151.24,151.2,8.11988462]
[1750154823343,5.38766284,151.22,151.17,6.61474149]
[1750154823554,5.38766284,151.22,151.18,11.16766284]
[1750154823959,5.38766284,151.21,151.18,5.78]
[1750154824461,5.38766284,151.2,151.18,5.78]
[1750154825559,5.38766284,151.19,151.18,5.78]
[1750154825750,12.00152907,151.2,151.18,5.78]
[1750154826260,6.61386623,151.2,151.18,5.78]
[1750154826833,12.00152907,151.2,151.18,5.78]
[1750154827239,6.61386623,151.2,151.18,5.78]
[1750154827567,12.00152907,151.2,151.18,5.78]
[1750154828268,12.00098206,151.21,151.18,5.78]
[1750154828782,6.61331922,151.21,151.18,5.78]
[1750154828940,12.00098206,151.21,151.18,5.78]
[1750154829251,5.38766284,151.2,151.18,5.78]
[1750154829556,4.89649374,151.19,151.18,5.78]
[1750154830983,12.00069993,151.22,151.18,11.16766284]
[1750154831164,4.89663412,151.21,151.18,11.16766284]
[1750154831349,4.89663412,151.2,151.18,11.16766284]
[1750154831553,6.61303709,151.22,151.18,11.16766284]
[1750154831753,4.89594516,151.21,151.18,11.16766284]
[1750154831953,4.89594516,151.2,151.19,5.38766284]
[1750154832171,4.89600247,151.23,151.19,5.38766284]
[1750154832366,11.99950139,151.25,151.21,5.38766284]
[1750154832675,4.89658016,151.24,151.21,5.38766284]
[1750154832874,4.89658016,151.23,151.21,5.38766284]
[1750154833079,7.83584833,151.26,151.21,5.38766284]
[1750154833255,4.89612195,151.25,151.21,5.38766284]
[1750154833572,4.89612195,151.24,151.21,5.38766284]
[1750154833765,6.61113314,151.26,151.21,5.38766284]
[1750154833950,4.89598226,151.25,151.22,7.04436284]
[1750154834155,4.89598226,151.24,151.22,7.04436284]
[1750154834484,11.99879598,151.26,151.22,7.04436284]
[1750154835461,5.38766284,151.24,151.2,6.1183]
[1750154835668,5.38766284,151.24,151.19,6.61405045]
[1750154835876,5.38766284,151.24,151.2,5.38766284]
[1750154836768,11.99938687,151.25,151.21,5.38766284]
[1750154837379,5.38766284,151.24,151.2,5.38766284]
[1750154837561,11.99938687,151.25,151.21,5.38766284]
[1750154838175,9.0597123,151.25,151.21,5.38766284]
[1750154838518,11.99938687,151.25,151.2,11.16766284]
[1750154838695,5.38766284,151.24,151.2,5.78]
[1750154838863,5.38766284,151.21,151.2,5.78]
[1750154840585,12.00098206,151.21,151.2,5.78]
[1750154843595,16.90647876,151.21,151.2,5.78]
[1750154845302,12.00098206,151.21,151.2,5.78]
[1750154845477,16.90644502,151.21,151.2,5.78]
[1750154845880,4.90546296,151.21,151.2,11.16766284]
[1750154846182,4.90546296,151.21,151.2,5.78]
[1750154848982,16.90644502,151.21,151.2,5.78]
[1750154850080,11.51878218,151.21,151.2,5.78]
[1750154850396,16.90644502,151.21,151.2,5.78]
[1750154851099,12.00098206,151.21,151.2,5.78]
[1750154851270,16.90485883,151.21,151.2,5.78]
[1750154851474,10.29153961,151.21,151.2,5.78]
[1750154852078,4.90387677,151.21,151.2,5.78]
[1750154856280,4.90074452,151.21,151.2,5.78]
[1750154856875,16.90172658,151.21,151.2,5.78]
[1750154857296,16.90172658,151.21,151.17,5.38766284]
[1750154857499,4.90074452,151.2,151.17,5.38766284]
[1750154857688,4.90074452,151.19,151.17,5.38766284]
[1750154857895,12.00098206,151.21,151.17,5.38766284]
[1750154858193,4.90336665,151.2,151.17,5.38766284]
[1750154858377,4.90336665,151.19,151.17,5.38766284]
[1750154858576,12.00098206,151.21,151.17,5.38766284]
[1750154858885,4.90344255,151.2,151.17,5.38766284]
[1750154859086,4.90344255,151.19,151.17,5.38766284]
[1750154859297,12.00098206,151.21,151.16,24.42147965]
[1750154859599,4.90343883,151.2,151.16,24.42147965]
[1750154859906,4.90343883,151.19,151.16,24.42147965]
[1750154860073,12.00098206,151.21,151.16,24.42147965]
[1750154860273,4.90356982,151.2,151.16,24.42147965]
[1750154860575,12.00098206,151.21,151.16,24.42147965]
[1750154860576,4.90356982,151.19,151.16,24.42147965]
[1750154860797,12.00098206,151.21,151.16,24.42147965]
[1750154861029,4.90447415,151.2,151.16,24.42147965]
[1750154861180,4.90447415,151.19,151.16,24.42147965]
[1750154861497,12.00098206,151.21,151.16,24.42147965]
[1750154861812,4.90520513,151.2,151.16,24.42147965]
[1750154861985,12.00098206,151.21,151.16,24.42147965]
[1750154861986,4.90520513,151.19,151.16,24.42147965]
[1750154862198,12.00098206,151.21,151.16,24.42147965]